[Event "LJ Slovak Open 2022"]
[Site "Liptovsky Jan"]
[Date "2022.06.25"]
[Round "5.59"]
[White "Pechociakova, Petra"]
[Black "Lesko Ondrej"]
[Result "1-0"]
[ECO "C65"]
[WhiteElo "1160"]
[BlackElo "1000"]
[Annotator "NA RC"]
[PlyCount "47"]
[EventDate "2022.06.23"]
[EventType "swiss"]
[EventCountry "SVK"]
[SourceTitle "playchess.com"]
[Source "ChessBase"]
[SourceQuality "1"]
[TimeControl "3600+30"]

1. e4 {[%emt 0:00:02]} e5 {[%emt 0:00:12]} 2. Nf3 {[%emt 0:00:02]} Nc6 {[%emt 0:00:45]} 3. Bb5 {[%emt 0:00:03]} Nf6 {[%emt 0:00:49]} 4. d3 {[%emt 0:00:07]} Bc5 {[%emt 0:00:31]} 5. Bxc6 {[%emt 0:00:20]} bxc6 {[%emt 0:00:43]} 6. Nxe5 {[%emt 0:00:11]} d6 {[%emt 0:00:54]} 7. Nxc6 {[%emt 0:00:34]} Qd7 {[%emt 0:01:16]} 8. Na5 {[%emt 0:00:26]} O-O {[%emt 0:00:26]} 9. O-O {[%emt 0:00:16]} Re8 {[%emt 0:01:10]} 10. h3 {[%emt 0:00:28]} h6 {[%emt 0:00:27]} 11. Qf3 {[%emt 0:00:35]} Bb7 {[%emt 0:02:30]} 12. Nxb7 {[%emt 0:00:12]} Bb4 {[%emt 0:01:07]} 13. Qg3 {[%emt 0:00:32]} Nh5 {[%emt 0:03:25]} 14. Qf3 {[%emt 0:00:41]} Re5 {[%emt 0:01:07]} 15. c3 {[%emt 0:00:28]} Rb8 {[%emt 0:01:04]} 16. cxb4 {[%emt 0:00:09]} Rxb7 {[%emt 0:00:24]} 17. d4 {[%emt 0:00:16]} Rg5 {[%emt 0:00:49]} 18. Bxg5 {[%emt 0:00:22]} hxg5 {[%emt 0:01:19]} 19. Qxh5 {[%emt 0:00:23]} Kf8 {[%emt 0:01:00]} 20. Qh8+ {[%emt 0:00:21]} Ke7 {[%emt 0:00:32]} 21. Qxg7 {[%emt 0:00:04]} g4 {[%emt 0:01:16]} 22. hxg4 {[%emt 0:00:15]} Rxb4 {[%emt 0:00:56]} 23. g5 {[%emt 0:00:04]} Rxd4 {[%emt 0:00:45]} 24. Qxd4 {[%emt 0:00:14]} 1-0

[Event "LJ Slovak Open 2022"]
[Site "Liptovsky Jan"]
[Date "2022.06.26"]
[Round "6.1"]
[White "Manik, Mikulas"]
[Black "Elias, David"]
[Result "1-0"]
[ECO "B67"]
[WhiteElo "2368"]
[BlackElo "1901"]
[Annotator "RC"]
[PlyCount "59"]
[EventDate "2022.06.23"]
[EventType "swiss"]
[EventCountry "SVK"]
[SourceTitle "playchess.com"]
[Source "ChessBase"]
[SourceQuality "1"]
[TimeControl "3600+30"]

1. e4 {[%emt 0:00:16]} c5 {[%emt 0:00:04]} 2. Nf3 {[%emt 0:00:19]} d6 {[%emt 0:00:04]} 3. d4 {[%emt 0:00:05]} cxd4 {[%emt 0:00:04]} 4. Nxd4 {[%emt 0:00:06]} Nf6 {[%emt 0:00:02]} 5. Nc3 {[%emt 0:00:06]} Nc6 {[%emt 0:00:02]} 6. Bg5 {[%emt 0:00:08]} e6 {[%emt 0:00:20]} 7. Qd2 {[%emt 0:00:08]} a6 {[%emt 0:00:16]} 8. O-O-O {[%emt 0:00:10]} Bd7 {[%emt 0:00:14]} 9. f3 {[%emt 0:00:22]} Be7 {[%emt 0:00:40]} 10. h4 {[%emt 0:00:37]} Nxd4 {[%emt 0:00:39]} 11. Qxd4 {[%emt 0:00:07]} b5 {[%emt 0:01:12]} 12. Kb1 {[%emt 0:05:12]} Qc7 {[%emt 0:01:42]} 13. Be3 {[%emt 0:12:32]} Rb8 {[%emt 0:04:16]} 14. g4 {[%emt 0:00:39]} Bc6 {[%emt 0:01:29]} 15. g5 {[%emt 0:02:19]} e5 {[%emt 0:09:13]} 16. Qa7 {[%emt 0:04:15]} Rb7 {[%emt 0:02:06]} 17. Qa8+ {[%emt 0:04:50]} Rb8 {[%emt 0:01:50]} 18. Qxa6 {[%emt 0:00:08]} Nd7 {[%emt 0:05:33]} 19. Nxb5 {[%emt 0:09:20]} Bxb5 {[%emt 0:00:31]} 20. Bxb5 {[%emt 0:00:16]} O-O {[%emt 0:00:07]} 21. Qc6 {[%emt 0:01:58]} Qa5 {[%emt 0:03:37]} 22. a4 {[%emt 0:03:09]} Nb6 {[%emt 0:04:14]} 23. Qc7 {[%emt 0:02:11]} Rfc8 {[%emt 0:04:56]} 24. Bxb6 {[%emt 0:00:49]} Qxb6 {[%emt 0:08:09]} 25. Qxe7 {[%emt 0:00:17]} Qc5 {[%emt 0:00:13]} 26. c3 {[%emt 0:01:08]} Rb6 {[%emt 0:00:34]} 27. Rd3 {[%emt 0:08:49]} g6 {[%emt 0:02:12]} 28. Rhd1 {[%emt 0:00:27]} Qf2 {[%emt 0:01:20]} 29. Rxd6 {[%emt 0:01:21]} Qxf3 {[%emt 0:00:47]} 30. Rd8+ {[%emt 0:00:04]} 1-0

[Event "LJ Slovak Open 2022"]
[Site "Liptovsky Jan"]
[Date "2022.06.26"]
[Round "6.2"]
[White "Holly, Andrej"]
[Black "Skreko, Igor"]
[Result "0-1"]
[ECO "B92"]
[WhiteElo "2214"]
[BlackElo "2065"]
[Annotator "RC"]
[PlyCount "70"]
[EventDate "2022.06.23"]
[EventType "swiss"]
[EventCountry "SVK"]
[SourceTitle "playchess.com"]
[Source "ChessBase"]
[SourceQuality "1"]
[TimeControl "3600+30"]

1. e4 {[%emt 0:00:04]} c5 {[%emt 0:00:05]} 2. Nf3 {[%emt 0:00:03]} d6 {[%emt 0:00:07]} 3. d4 {[%emt 0:00:01]} cxd4 {[%emt 0:00:09]} 4. Nxd4 {[%emt 0:00:02]} Nf6 {[%emt 0:00:11]} 5. Nc3 {[%emt 0:00:03]} a6 {[%emt 0:00:06]} 6. Be2 {[%emt 0:00:21]} e5 {[%emt 0:00:07]} 7. Nb3 {[%emt 0:00:31]} Be6 {[%emt 0:00:13]} 8. Nd5 {[%emt 0:00:21]} Nxd5 {[%emt 0:04:35]} 9. exd5 {[%emt 0:00:24]} Bf5 {[%emt 0:00:07]} 10. Be3 {[%emt 0:03:37]} Be7 {[%emt 0:00:38]} 11. Qd2 {[%emt 0:03:28]} Nd7 {[%emt 0:01:04]} 12. g4 {[%emt 0:00:34]} Bg6 {[%emt 0:00:58]} 13. h4 {[%emt 0:01:21]} h5 {[%emt 0:07:48]} 14. gxh5 {[%emt 0:04:03]} Bxh5 {[%emt 0:00:14]} 15. Bxh5 {[%emt 0:01:36]} Rxh5 {[%emt 0:00:09]} 16. O-O-O {[%emt 0:00:10]} Qc7 {[%emt 0:02:29]} 17. Rhg1 {[%emt 0:04:34]} g6 {[%emt 0:01:56]} 18. Bg5 {[%emt 0:03:14]} Bxg5 {[%emt 0:03:25]} 19. hxg5 {[%emt 0:00:01]} O-O-O {[%emt 0:01:10]} 20. Rg3 {[%emt 0:05:10]} Kb8 {[%emt 0:05:21]} 21. Rf3 {[%emt 0:00:34]} Rf8 {[%emt 0:03:16]} 22. Na5 {[%emt 0:05:11]} Rh4 {[%emt 0:04:07]} 23. a3 {[%emt 0:12:26]} Nc5 {[%emt 0:05:43]} 24. Re3 {[%emt 0:06:39]} Rc8 {[%emt 0:07:16]} 25. f3 {[%emt 0:02:32]} Rd4 {[%emt 0:04:55]} 26. Qc3 {[%emt 0:00:33]} Qd8 {[%emt 0:01:33]} 27. Rxd4 {[%emt 0:07:36]} exd4 {[%emt 0:00:27]} 28. Qxd4 {[%emt 0:00:01]} Qxa5 {[%emt 0:00:21]} 29. b4 {[%emt 0:00:03]} Qa4 {[%emt 0:00:37]} 30. Qb2 {[%emt 0:04:16]} Nd7 {[%emt 0:01:17]} 31. f4 {[%emt 0:00:12]} Nb6 {[%emt 0:01:02]} 32. Re7 {[%emt 0:00:07]} Nc4 {[%emt 0:00:59]} 33. Qb3 {[%emt 0:00:05]} Qxb3 {[%emt 0:02:15]} 34. cxb3 {[%emt 0:00:02]} Nb6+ {[%emt 0:01:00]} 35. Kd2 {[%emt 0:00:12]} Rc7 {[%emt 0:00:17]} 0-1

[Event "LJ Slovak Open 2022"]
[Site "Liptovsky Jan"]
[Date "2022.06.26"]
[Round "6.3"]
[White "Karas, Marek"]
[Black "Wisniewski, Michal"]
[Result "1/2-1/2"]
[ECO "A43"]
[WhiteElo "2292"]
[BlackElo "2073"]
[Annotator "TA"]
[PlyCount "27"]
[EventDate "2022.06.23"]
[EventType "swiss"]
[EventCountry "SVK"]
[SourceTitle "playchess.com"]
[Source "ChessBase"]
[SourceQuality "1"]
[TimeControl "3600+30"]

{[%evp 9,27,41,79,68,63,50,49,58,79,80,152,142,148,136,179,95,95,94,92,-260]} 1. d4 {[%emt 0:00:42]} Nf6 {[%emt 0:07:24]} 2. Nf3 {[%emt 0:00:09]} c5 {[%emt 0:00:05]} 3. d5 {[%emt 0:00:06]} b5 {[%emt 0:00:00]} 4. Bg5 {[%emt 0:00:07]} Qb6 {[%emt 0:00:15]} 5. Bxf6 {[%emt 0:02:55]} gxf6 {[%emt 0:00:30]} 6. e4 {[%emt 0:00:30] A43: Schmid Benoni.} d6 {[%emt 0:00:30]} 7. a4 {[%emt 0:00:30]} bxa4 {[%emt 0:05:18] [#]} 8. Nc3 $146 {[%emt 0:05:00] White is slightly better.} ({Predecessor:} 8. Ra2 f5 9. e5 dxe5 10. Nxe5 Bg7 11. Nc4 Qf6 12. Be2 Bb7 13. O-O O-O 14. Na5 {1-0 (78) Naumkin,I (2446)-Messina,E (1976) Gallipoli 2001}) 8... Bd7 {[%emt 0:02:49] Against Bb5} ({Of course not} 8... Qxb2 9. Nxa4 (9. Bb5+ $2 Kd8 $19) 9... Qb4+ 10. Nd2 $15) 9. Nxa4 {[%emt 0:02:23]} Bxa4 {[%emt 0:01:31]} ({Black should try} 9... Qb4+ 10. c3 (10. Nc3 Qxb2 11. Ne2 Bh6 $15) 10... Qxe4+ 11. Be2 Na6) 10. Rxa4 $16 {[%emt 0:00:09]} Qxb2 {[%emt 0:00:13] [#]} 11. Bd3 $1 {[%emt 0:01:19]} Qc3+ {[%emt 0:12:26]} 12. Qd2 {[%emt 0:01:14]} ({White should play} 12. Kf1 $18 {Strongly threatening Qb1.} Qb2 13. g3) 12... Qxd2+ {[%emt 0:00:48]} 13. Nxd2 {[%emt 0:00:15]} Bh6 {[%emt 0:04:55]} 14. O-O $2 {[%emt 0:08:21][%mdl 40960] Weighted Error Value: White=0.13 (very precise) /Black=0.24 (precise) . An unexpected result.} 1/2-1/2

[Event "LJ Slovak Open 2022"]
[Site "Liptovsky Jan"]
[Date "2022.06.26"]
[Round "6.5"]
[White "Vilimek, Vit"]
[Black "Varga, Lukas"]
[Result "0-1"]
[ECO "B20"]
[WhiteElo "1972"]
[BlackElo "2136"]
[Annotator "NA RC"]
[PlyCount "200"]
[EventDate "2022.06.23"]
[EventType "swiss"]
[EventCountry "SVK"]
[SourceTitle "playchess.com"]
[Source "ChessBase"]
[SourceQuality "1"]
[TimeControl "3600+30"]

1. e4 {[%emt 0:00:04]} c5 {[%emt 0:01:45]} 2. b4 {[%emt 0:00:46]} cxb4 {[%emt 0:00:05]} 3. a3 {[%emt 0:00:01]} d5 {[%emt 0:00:07]} 4. exd5 {[%emt 0:00:01]} Qxd5 {[%emt 0:00:20]} 5. Nf3 {[%emt 0:00:03]} e5 {[%emt 0:02:56]} 6. c4 {[%emt 0:00:08]} bxc3 {[%emt 0:03:49]} 7. Nxc3 {[%emt 0:00:02]} Qa5 {[%emt 0:00:12]} 8. Bc4 {[%emt 0:01:47]} Nc6 {[%emt 0:03:23]} 9. O-O {[%emt 0:01:49]} Bd6 {[%emt 0:06:05]} 10. Qb3 {[%emt 0:01:28]} Nh6 {[%emt 0:03:13]} 11. Ne4 {[%emt 0:05:34]} Be7 {[%emt 0:07:35]} 12. d4 {[%emt 0:08:08]} Qb6 {[%emt 0:07:16]} 13. Qxb6 {[%emt 0:06:07]} axb6 {[%emt 0:00:12]} 14. d5 {[%emt 0:11:14]} Nd4 {[%emt 0:07:43]} 15. Nxe5 {[%emt 0:07:14]} b5 {[%emt 0:00:22]} 16. Ba2 {[%emt 0:05:58]} Ne2+ {[%emt 0:05:19]} 17. Kh1 {[%emt 0:00:46]} Nxc1 {[%emt 0:00:05]} 18. Raxc1 {[%emt 0:06:42]} Bxa3 {[%emt 0:01:53]} 19. d6 {[%emt 0:08:18]} Bxc1 {[%emt 0:00:55]} 20. Rxc1 {[%emt 0:00:02]} f6 {[%emt 0:04:06]} 21. Rxc8+ {[%emt 0:02:56]} Rxc8 {[%emt 0:00:07]} 22. d7+ {[%emt 0:00:30]} Ke7 {[%emt 0:00:09]} 23. dxc8=Q {[%emt 0:00:50]} Rxc8 {[%emt 0:00:02]} 24. Nd3 {[%emt 0:00:36]} f5 {[%emt 0:01:49]} 25. Ng3 {[%emt 0:01:22]} Ra8 {[%emt 0:00:09]} 26. Nc1 {[%emt 0:00:31]} Rc8 {[%emt 0:02:44]} 27. Nge2 {[%emt 0:00:17]} Ng4 {[%emt 0:00:13]} 28. Kg1 {[%emt 0:00:38]} Kd6 {[%emt 0:00:22]} 29. f3 {[%emt 0:00:31]} Ne3 {[%emt 0:00:23]} 30. Bb3 {[%emt 0:00:21]} Nd5 {[%emt 0:01:17]} 31. Na2 {[%emt 0:00:36]} Kc5 {[%emt 0:00:28]} 32. Kf2 {[%emt 0:00:24]} Ra8 {[%emt 0:00:18]} 33. Kg3 {[%emt 0:00:36]} Ra3 {[%emt 0:00:19]} 34. Nac1 {[%emt 0:00:14]} Nb4 {[%emt 0:01:48]} 35. Kf4 {[%emt 0:00:13]} g6 {[%emt 0:00:19]} 36. h4 {[%emt 0:00:37]} Nc6 {[%emt 0:00:53]} 37. Nd3+ {[%emt 0:00:16]} Kd6 {[%emt 0:00:06]} 38. Nec1 {[%emt 0:00:12]} Nd4 {[%emt 0:00:33]} 39. Bg8 {[%emt 0:01:06]} h6 {[%emt 0:00:06]} 40. Ke3 {[%emt 0:00:36]} Nc6 {[%emt 0:00:31]} 41. Kd2 {[%emt 0:00:47]} Ne5 {[%emt 0:00:18]} 42. Bb3 {[%emt 0:00:28]} Nc4+ {[%emt 0:00:43]} 43. Kc3 {[%emt 0:00:36]} Ne3 {[%emt 0:00:11]} 44. Kb4 {[%emt 0:00:27]} Ra8 {[%emt 0:00:47]} 45. g3 {[%emt 0:00:07]} Nf1 {[%emt 0:00:53]} 46. Ne2 {[%emt 0:00:53]} Re8 {[%emt 0:00:08]} 47. Nd4 {[%emt 0:00:24]} Nxg3 {[%emt 0:00:35]} 48. Nf4 {[%emt 0:00:36]} Ke5 {[%emt 0:00:41]} 49. Nfe6 {[%emt 0:00:07]} f4 {[%emt 0:01:02]} 50. Kxb5 {[%emt 0:00:48]} Rh8 {[%emt 0:00:45]} 51. Kb6 {[%emt 0:00:35]} Nf5 {[%emt 0:00:36]} 52. Nxf5 {[%emt 0:00:27]} Kxf5 {[%emt 0:00:06]} 53. Nc5 {[%emt 0:00:34]} Re8 {[%emt 0:00:35]} 54. Bc2+ {[%emt 0:00:09]} Kf6 {[%emt 0:00:51]} 55. Ne4+ {[%emt 0:00:44]} Ke5 {[%emt 0:00:33]} 56. Nf2 {[%emt 0:00:01]} h5 {[%emt 0:00:46]} 57. Nd3+ {[%emt 0:00:42]} Kf5 {[%emt 0:00:25]} 58. Nf2+ {[%emt 0:00:19]} Kf6 {[%emt 0:01:51]} 59. Ne4+ {[%emt 0:00:19]} Kg7 {[%emt 0:01:23]} 60. Kxb7 {[%emt 0:00:08]} Rd8 {[%emt 0:00:17]} 61. Kc7 {[%emt 0:00:08]} Rd4 {[%emt 0:00:15]} 62. Bb1 {[%emt 0:00:59]} Rd1 {[%emt 0:00:09]} 63. Ba2 {[%emt 0:00:33]} Rh1 {[%emt 0:00:18]} 64. Kd6 {[%emt 0:00:09]} Rxh4 {[%emt 0:00:25]} 65. Ke5 {[%emt 0:00:02]} Kh6 {[%emt 0:00:52]} 66. Be6 {[%emt 0:01:01]} Rh1 {[%emt 0:01:26]} 67. Kxf4 {[%emt 0:00:19]} Ra1 {[%emt 0:00:11]} 68. Ke5 {[%emt 0:01:53]} h4 {[%emt 0:00:45]} 69. Bg4 {[%emt 0:00:34]} Ra3 {[%emt 0:00:48]} 70. Kf4 {[%emt 0:00:21]} Ra5 {[%emt 0:00:33]} 71. Be6 {[%emt 0:00:41]} g5+ {[%emt 0:00:45]} 72. Kg4 {[%emt 0:00:04]} Ra1 {[%emt 0:00:24]} 73. Bf5 {[%emt 0:00:57]} Rg1+ {[%emt 0:00:05]} 74. Kh3 {[%emt 0:00:04]} Rf1 {[%emt 0:00:28]} 75. Kg2 {[%emt 0:00:07]} Ra1 {[%emt 0:00:21]} 76. Nf6 {[%emt 0:00:50]} Kg7 {[%emt 0:00:32]} 77. Ng4 {[%emt 0:00:09]} Ra2+ {[%emt 0:00:11]} 78. Kh3 {[%emt 0:00:05]} Ra3 {[%emt 0:00:15]} 79. Be4 {[%emt 0:00:02]} Ra1 {[%emt 0:00:32]} 80. Ne3 {[%emt 0:00:49]} Rh1+ {[%emt 0:00:29]} 81. Kg2 {[%emt 0:00:37]} Re1 {[%emt 0:00:11]} 82. Kf2 {[%emt 0:00:37]} Ra1 {[%emt 0:00:06]} 83. Nc2 {[%emt 0:00:54]} Ra2 {[%emt 0:00:19]} 84. Kg2 {[%emt 0:00:17]} Kf6 {[%emt 0:00:50]} 85. Kh3 {[%emt 0:00:44]} Ke5 {[%emt 0:01:12]} 86. Nb4 {[%emt 0:00:59]} Ra1 {[%emt 0:00:26]} 87. Nd3+ {[%emt 0:00:37]} Kd4 {[%emt 0:00:13]} 88. Nf2 {[%emt 0:00:33]} Rg1 {[%emt 0:00:15]} 89. Kh2 {[%emt 0:00:28]} Ra1 {[%emt 0:00:43]} 90. Nh3 {[%emt 0:00:27]} Ra5 {[%emt 0:00:26]} 91. Kg2 {[%emt 0:00:38]} Ra2+ {[%emt 0:01:06]} 92. Kf1 {[%emt 0:00:35]} g4 {[%emt 0:00:14]} 93. Nf2 {[%emt 0:00:28]} g3 {[%emt 0:00:15]} 94. Nh3 {[%emt 0:00:19]} Ke3 {[%emt 0:00:36]} 95. Bb7 {[%emt 0:00:29]} Rh2 {[%emt 0:00:31]} 96. Ng5 {[%emt 0:00:38]} h3 {[%emt 0:00:47]} 97. Kg1 {[%emt 0:00:06]} Rg2+ {[%emt 0:00:26]} 98. Kf1 {[%emt 0:00:22]} Rf2+ {[%emt 0:00:20]} 99. Ke1 {[%emt 0:00:51]} h2 {[%emt 0:00:23]} 100. f4 {[%emt 0:00:34]} g2 {[%emt 0:00:10]} 0-1

[Event "LJ Slovak Open 2022"]
[Site "Liptovsky Jan"]
[Date "2022.06.26"]
[Round "6.6"]
[White "Spik, Peter"]
[Black "Janousek, Petr"]
[Result "1/2-1/2"]
[ECO "A84"]
[WhiteElo "1969"]
[BlackElo "2099"]
[Annotator "NA RC"]
[PlyCount "66"]
[EventDate "2022.06.23"]
[EventType "swiss"]
[EventCountry "SVK"]
[SourceTitle "playchess.com"]
[Source "ChessBase"]
[SourceQuality "1"]
[TimeControl "3600+30"]

1. d4 {[%emt 0:00:05]} e6 {[%emt 0:02:33]} 2. Nf3 {[%emt 0:00:20]} f5 {[%emt 0:00:07]} 3. c4 {[%emt 0:01:13]} Nf6 {[%emt 0:00:05]} 4. Nc3 {[%emt 0:00:08]} Bb4 {[%emt 0:00:15]} 5. Bd2 {[%emt 0:01:48]} b6 {[%emt 0:00:20]} 6. g3 {[%emt 0:00:55]} Bb7 {[%emt 0:00:38]} 7. Bg2 {[%emt 0:00:04]} O-O {[%emt 0:00:38]} 8. O-O {[%emt 0:00:14]} Bxc3 {[%emt 0:04:31]} 9. Bxc3 {[%emt 0:00:43]} Ne4 {[%emt 0:00:06]} 10. Bb4 {[%emt 0:00:57]} d6 {[%emt 0:01:27]} 11. b3 {[%emt 0:01:17]} Nd7 {[%emt 0:01:05]} 12. Ba3 {[%emt 0:01:54]} Ndf6 {[%emt 0:01:14]} 13. Qc2 {[%emt 0:03:10]} Qe8 {[%emt 0:10:21]} 14. Nd2 {[%emt 0:02:44]} Qh5 {[%emt 0:03:24]} 15. f3 {[%emt 0:01:17]} Nxd2 {[%emt 0:05:01]} 16. Qxd2 {[%emt 0:00:07]} Rad8 {[%emt 0:00:48]} 17. Rad1 {[%emt 0:03:02]} Rfe8 {[%emt 0:01:21]} 18. Bb2 {[%emt 0:01:01]} Qg6 {[%emt 0:04:05]} 19. Qf4 {[%emt 0:03:16]} Nd7 {[%emt 0:06:50]} 20. Qh4 {[%emt 0:12:18]} Qf6 {[%emt 0:07:09]} 21. Qxf6 {[%emt 0:04:09]} Nxf6 {[%emt 0:00:04]} 22. Rfe1 {[%emt 0:00:08]} Nd7 {[%emt 0:04:29]} 23. e3 {[%emt 0:08:50]} a5 {[%emt 0:01:27]} 24. e4 {[%emt 0:05:28]} fxe4 {[%emt 0:00:24]} 25. fxe4 {[%emt 0:00:06]} e5 {[%emt 0:00:15]} 26. dxe5 {[%emt 0:03:33]} Nxe5 {[%emt 0:00:18]} 27. Rd2 {[%emt 0:02:48]} Ra8 {[%emt 0:01:13]} 28. Rf1 {[%emt 0:01:31]} Re7 {[%emt 0:02:08]} 29. Rf5 {[%emt 0:02:11]} Rae8 {[%emt 0:01:26]} 30. Bxe5 {[%emt 0:00:44]} Rxe5 {[%emt 0:00:19]} 31. Rxe5 {[%emt 0:00:18]} Rxe5 {[%emt 0:00:04]} 32. Re2 {[%emt 0:00:14]} Bc8 {[%emt 0:03:56]} 33. Kf2 {[%emt 0:00:45]} Kf7 {[%emt 0:02:42]} 1/2-1/2

[Event "LJ Slovak Open 2022"]
[Site "Liptovsky Jan"]
[Date "2022.06.26"]
[Round "6.7"]
[White "Rucek, Peter"]
[Black "Zetocha, Adrian"]
[Result "1/2-1/2"]
[ECO "E15"]
[WhiteElo "1899"]
[BlackElo "2331"]
[Annotator "RC"]
[PlyCount "69"]
[EventDate "2022.06.23"]
[EventType "swiss"]
[EventCountry "SVK"]
[SourceTitle "playchess.com"]
[Source "ChessBase"]
[SourceQuality "1"]
[TimeControl "3600+30"]

1. d4 {[%emt 0:00:02]} Nf6 {[%emt 0:00:11]} 2. c4 {[%emt 0:00:05]} e6 {[%emt 0:00:16]} 3. Nf3 {[%emt 0:00:04]} b6 {[%emt 0:00:15]} 4. g3 {[%emt 0:00:05]} Ba6 {[%emt 0:00:07]} 5. b3 {[%emt 0:00:08]} Bb4+ {[%emt 0:00:08]} 6. Bd2 {[%emt 0:00:06]} Be7 {[%emt 0:00:08]} 7. Nc3 {[%emt 0:00:16]} O-O {[%emt 0:00:17]} 8. e4 {[%emt 0:00:12]} d5 {[%emt 0:00:07]} 9. cxd5 {[%emt 0:00:06]} Bxf1 {[%emt 0:01:19]} 10. Kxf1 {[%emt 0:00:03]} exd5 {[%emt 0:00:14]} 11. e5 {[%emt 0:00:14]} Ne4 {[%emt 0:07:25]} 12. Kg2 {[%emt 0:00:22]} c5 {[%emt 0:08:51]} 13. Re1 {[%emt 0:00:46]} f5 {[%emt 0:13:18]} 14. exf6 {[%emt 0:01:01]} Bxf6 {[%emt 0:00:36]} 15. Nxe4 {[%emt 0:02:25]} dxe4 {[%emt 0:00:06]} 16. Rxe4 {[%emt 0:00:04]} Qd5 {[%emt 0:03:53]} 17. Qe2 {[%emt 0:02:57]} Nc6 {[%emt 0:04:34]} 18. Bc3 {[%emt 0:07:17]} Rad8 {[%emt 0:07:35]} 19. Rd1 {[%emt 0:00:48]} Nxd4 {[%emt 0:06:32]} 20. Bxd4 {[%emt 0:00:38]} cxd4 {[%emt 0:00:35]} 21. Qc4 {[%emt 0:02:47]} Qxc4 {[%emt 0:01:45]} 22. bxc4 {[%emt 0:00:01]} Rd6 {[%emt 0:00:56]} 23. Rd3 {[%emt 0:08:50]} Rc8 {[%emt 0:00:28]} 24. Nd2 {[%emt 0:00:09]} a6 {[%emt 0:05:50]} 25. Re2 {[%emt 0:04:34]} Rdc6 {[%emt 0:00:58]} 26. Ne4 {[%emt 0:01:10]} Rxc4 {[%emt 0:00:28]} 27. Nxf6+ {[%emt 0:00:17]} gxf6 {[%emt 0:00:05]} 28. Re6 {[%emt 0:00:15]} Rb4 {[%emt 0:03:31]} 29. Rd6 {[%emt 0:04:51]} Kf7 {[%emt 0:01:34]} 30. Rf3 {[%emt 0:01:50]} d3 {[%emt 0:02:53]} 31. Rfxf6+ {[%emt 0:01:38]} Ke7 {[%emt 0:00:21]} 32. Rfe6+ {[%emt 0:00:06]} Kf7 {[%emt 0:00:06]} 33. Rf6+ {[%emt 0:00:04]} Ke7 {[%emt 0:00:04]} 34. Rfe6+ {[%emt 0:00:04]} Kf7 {[%emt 0:00:05]} 35. Rf6+ {[%emt 0:00:15]} 1/2-1/2

[Event "LJ Slovak Open 2022"]
[Site "Liptovsky Jan"]
[Date "2022.06.26"]
[Round "6.8"]
[White "Rucek, Kristian"]
[Black "Smusz, Kamil"]
[Result "1/2-1/2"]
[ECO "D43"]
[WhiteElo "2128"]
[BlackElo "1881"]
[Annotator "RC"]
[PlyCount "65"]
[EventDate "2022.06.23"]
[EventType "swiss"]
[EventCountry "SVK"]
[SourceTitle "playchess.com"]
[Source "ChessBase"]
[SourceQuality "1"]
[TimeControl "3600+30"]

1. d4 {[%emt 0:00:02]} d5 {[%emt 0:02:45]} 2. c4 {[%emt 0:00:07]} c6 {[%emt 0:00:01]} 3. Nc3 {[%emt 0:00:06]} Nf6 {[%emt 0:00:03]} 4. Nf3 {[%emt 0:01:05]} a6 {[%emt 0:01:30]} 5. Qd3 {[%emt 0:01:14]} dxc4 {[%emt 0:05:28]} 6. Qxc4 {[%emt 0:00:03]} b5 {[%emt 0:00:12]} 7. Qd3 {[%emt 0:00:43]} e6 {[%emt 0:00:22]} 8. g4 {[%emt 0:00:20]} c5 {[%emt 0:06:18]} 9. g5 {[%emt 0:00:08]} cxd4 {[%emt 0:06:09]} 10. gxf6 {[%emt 0:11:13]} dxc3 {[%emt 0:00:11]} 11. Qxc3 {[%emt 0:00:22]} gxf6 {[%emt 0:00:04]} 12. Bf4 {[%emt 0:07:49]} Bb7 {[%emt 0:13:03]} 13. Rd1 {[%emt 0:04:13]} Nd7 {[%emt 0:01:21]} 14. Rg1 {[%emt 0:01:17]} Rc8 {[%emt 0:07:08]} 15. Qd3 {[%emt 0:06:11]} Bb4+ {[%emt 0:03:38]} 16. Bd2 {[%emt 0:01:14]} Qe7 {[%emt 0:02:40]} 17. Bh3 {[%emt 0:04:27]} Bxf3 {[%emt 0:06:57]} 18. exf3 {[%emt 0:00:08]} Ne5 {[%emt 0:01:13]} 19. Qb3 {[%emt 0:03:09]} Bxd2+ {[%emt 0:02:19]} 20. Kxd2 {[%emt 0:00:10]} Qc5 {[%emt 0:02:14]} 21. Ke1 {[%emt 0:06:16]} Qc4 {[%emt 0:02:33]} 22. Qe3 {[%emt 0:01:06]} Ke7 {[%emt 0:01:27]} 23. f4 {[%emt 0:03:49]} Ng6 {[%emt 0:02:10]} 24. f5 {[%emt 0:01:28]} Nf4 {[%emt 0:00:43]} 25. fxe6 {[%emt 0:03:03]} Nxe6 {[%emt 0:01:02]} 26. Rg4 {[%emt 0:02:19]} Qc5 {[%emt 0:00:22]} 27. Qf3 {[%emt 0:02:41]} Rhd8 {[%emt 0:00:25]} 28. Rxd8 {[%emt 0:03:45]} Rxd8 {[%emt 0:00:02]} 29. Kf1 {[%emt 0:00:47]} Ng5 {[%emt 0:01:06]} 30. Qb7+ {[%emt 0:02:05]} Kf8 {[%emt 0:00:47]} 31. Rg3 {[%emt 0:01:42]} Rd1+ {[%emt 0:00:49]} 32. Kg2 {[%emt 0:00:14]} Qc4 {[%emt 0:00:31]} 33. Qc8+ {[%emt 0:01:57]} 1/2-1/2

[Event "LJ Slovak Open 2022"]
[Site "Liptovsky Jan"]
[Date "2022.06.26"]
[Round "6.9"]
[White "Borsos, Bogdan"]
[Black "Ziaran, Viliam"]
[Result "1-0"]
[ECO "E08"]
[WhiteElo "2200"]
[BlackElo "1832"]
[Annotator "ChessBase"]
[PlyCount "77"]
[EventDate "2022.06.23"]
[EventType "swiss"]
[EventCountry "SVK"]
[SourceTitle "playchess.com"]
[Source "ChessBase"]
[SourceQuality "1"]
[TimeControl "3600+30"]

1. Nf3 {[%emt 0:03:12]} d5 {[%emt 0:00:08]} 2. c4 {[%emt 0:00:07]} e6 {[%emt 0:01:24]} 3. g3 {[%emt 0:00:21]} c6 {[%emt 0:00:10]} 4. d4 {[%emt 0:00:21]} Nf6 {[%emt 0:00:11]} 5. Bg2 {[%emt 0:00:06]} Nbd7 {[%emt 0:00:31]} 6. O-O {[%emt 0:00:45]} Be7 {[%emt 0:07:44]} 7. Nc3 {[%emt 0:00:11]} O-O {[%emt 0:00:19]} 8. Nd2 {[%emt 0:00:07]} b6 {[%emt 0:01:27]} 9. e4 {[%emt 0:00:07]} dxe4 {[%emt 0:00:28]} 10. Ndxe4 {[%emt 0:00:07]} Bb7 {[%emt 0:00:39]} 11. Qc2 {[%emt 0:03:26]} h6 {[%emt 0:01:09]} 12. Rd1 {[%emt 0:00:37]} Rc8 {[%emt 0:02:51]} 13. Bf4 {[%emt 0:02:16]} Nxe4 {[%emt 0:00:54]} 14. Nxe4 {[%emt 0:00:16]} Nf6 {[%emt 0:00:41]} 15. c5 {[%emt 0:04:25]} Ne8 {[%emt 0:04:37]} 16. b4 {[%emt 0:00:40]} g5 {[%emt 0:01:46]} 17. Be3 {[%emt 0:01:49]} Nf6 {[%emt 0:00:29]} 18. Qe2 {[%emt 0:03:10]} Nd5 {[%emt 0:01:54]} 19. Bd2 {[%emt 0:00:48]} Kg7 {[%emt 0:00:55]} 20. Rab1 {[%emt 0:03:52]} Qd7 {[%emt 0:02:42]} 21. a4 {[%emt 0:00:50]} f5 {[%emt 0:01:09]} 22. Nc3 {[%emt 0:00:23]} Bf6 {[%emt 0:00:30]} 23. Qd3 {[%emt 0:03:37]} Rcd8 {[%emt 0:02:01]} 24. Nxd5 {[%emt 0:01:29]} exd5 {[%emt 0:03:08]} 25. Re1 {[%emt 0:00:37]} Rfe8 {[%emt 0:02:33]} 26. cxb6 {[%emt 0:02:56]} axb6 {[%emt 0:00:26]} 27. a5 {[%emt 0:00:08]} bxa5 {[%emt 0:03:24]} 28. bxa5 {[%emt 0:00:07]} Rxe1+ {[%emt 0:02:17]} 29. Rxe1 {[%emt 0:00:56]} Ra8 {[%emt 0:00:25]} 30. Bh3 {[%emt 0:00:40]} g4 {[%emt 0:00:48]} 31. Bf1 {[%emt 0:00:18]} Kg6 {[%emt 0:03:04]} 32. h4 {[%emt 0:04:41]} Ba6 {[%emt 0:05:01]} 33. Qe3 {[%emt 0:02:01]} Qg7 {[%emt 0:00:49]} 34. Qe6 {[%emt 0:01:05]} Bxf1 {[%emt 0:04:39]} 35. Kxf1 {[%emt 0:00:57]} Ra6 {[%emt 0:01:37]} 36. h5+ {[%emt 0:01:11]} Kxh5 {[%emt 0:02:34]} 37. Qxf5+ {[%emt 0:00:07]} Bg5 {[%emt 0:00:11]} 38. Kg2 {[%emt 0:00:18]} Qxd4 {[%emt 0:00:31]} 39. Rh1# {[%emt 0:00:11]} 1-0